fUSD/lending_fUSD_20250826
["ID","MTS","AMOUNT","RATE_DAILY","PERIOD"]
[381504290,1756241433733,-200.0,0.0002391,7]
[381504291,1756241433742,-500.0,0.00023918,7]
[381504292,1756241433752,-150.0,0.00023918,7]
[381504293,1756241433762,-200.0,0.00023918,7]
[381504294,1756241433771,-500.0,0.00023918,7]
[381504295,1756241433781,-500.0,0.00023918,7]
[381504296,1756241433791,-500.0,0.00023918,7]
[381504297,1756241433800,-519.0,0.00023918,7]
[381504298,1756241433810,-500.0,0.00023918,7]
[381504299,1756241433820,-500.0,0.00023918,7]
[381504300,1756241433829,-150.0,0.00023999,2]
[381504301,1756241433839,-476772.3256156,0.00024,2]
[381504302,1756241433848,-844.63891918,0.00024,7]
[381504303,1756241433858,-160.0,0.00024,7]
[381504304,1756241433867,-160.0,0.00024,7]
[381504305,1756241433877,-906.0,0.00024093,2]
[381504306,1756241433887,-200.0,0.000241,7]
[381504307,1756241433896,-150.0,0.00024114,2]
[381504308,1756241433906,-164.44854057,0.00024133,2]
[381504309,1756241433915,-168.0,0.00024139,2]
[381504310,1756241433925,-150.99,0.00024174,2]
[381504311,1756241433935,-999.99,0.00024174,2]
[381504312,1756241433946,-1094.57,0.00024174,2]
[381504313,1756241433956,-9999.99,0.00024174,2]
[381504314,1756241433965,-499.99,0.00024174,2]
[381504315,1756241433975,-8214.8,0.00024174,2]
[381504316,1756241433985,-9482.32447782,0.00024178,2]
[381504317,1756241433995,-500.0,0.00024192,7]
[381504318,1756241434005,-150.0,0.00024192,7]
[381504319,1756241434016,-343.56535766,0.00024192,7]
[381504320,1756241434026,-500.0,0.00024192,7]
[381504321,1756241434036,-519.0,0.00024192,7]
[381504322,1756241434046,-500.0,0.00024192,7]
[381504323,1756241434056,-500.0,0.00024192,7]
[381504324,1756241434066,-168.0,0.00024196,2]
[381504325,1756241434076,-150.0,0.00024199,2]
[381504326,1756241434086,-151.0,0.000242,2]
[381504327,1756241434095,-670.58624095,0.000242,2]
[381504328,1756241434105,-151.0,0.000242,2]
[381504329,1756241434115,-151.0,0.000242,2]
[381504330,1756241434124,-160.0,0.000242,2]
[381504331,1756241434134,-209.08099929,0.000242,2]
[381504332,1756241434144,-322.6107,0.000242,2]
[381504333,1756241434154,-2434.74389024,0.000242,2]
[381504334,1756241434163,-151.0,0.000242,2]
[381504335,1756241434173,-1000.0,0.000242,2]
[381504336,1756241434183,-156.587,0.000242,2]
[381504337,1756241434192,-1000.0,0.000242,2]
[381504338,1756241434202,-1000.0,0.000242,2]
[381504339,1756241434211,-301.05877429,0.000242,2]
[381504340,1756241434221,-1000.0,0.000242,2]
[381504341,1756241434230,-656.28393085,0.000242,2]
[381504342,1756241434239,-1000.0,0.000242,2]
[381504343,1756241434248,-313.65369343,0.000242,2]
[381504344,1756241434259,-1000.0,0.000242,2]
[381504345,1756241434268,-253.03589786,0.000242,2]
[381504346,1756241434278,-300.0,0.000242,2]
[381504347,1756241434288,-300.0,0.000242,2]
[381504348,1756241434297,-300.0,0.000242,2]
[381504349,1756241434307,-300.0,0.000242,2]
[381504350,1756241434316,-300.0,0.000242,2]
[381504351,1756241434326,-300.0,0.000242,2]
[381504352,1756241434335,-300.0,0.000242,2]
[381504353,1756241434345,-380.0,0.000242,2]
[381504354,1756241434354,-300.0,0.000242,2]
[381504355,1756241434363,-300.0,0.000242,2]
[381504356,1756241434372,-300.0,0.000242,2]
[381504357,1756241434381,-257.91778498,0.000242,2]
[381504358,1756241434391,-300.0,0.000242,2]
[381504359,1756241434401,-300.0,0.000242,2]
[381504360,1756241434410,-300.0,0.000242,2]
[381504361,1756241434419,-151.0,0.000242,2]
[381504362,1756241434429,-300.0,0.000242,2]
[381504363,1756241434438,-151.0,0.000242,2]
[381504364,1756241434447,-300.0,0.000242,2]
[381504365,1756241434456,-151.0,0.000242,2]
[381504366,1756241434465,-300.0,0.000242,2]
[381504367,1756241434475,-151.0,0.000242,2]
[381504368,1756241434484,-151.0,0.000242,2]
[381504369,1756241434494,-151.0,0.000242,2]
[381504370,1756241434503,-151.0,0.000242,2]
[381504371,1756241434513,-151.0,0.000242,2]
[381504372,1756241434522,-151.0,0.000242,2]
[381504373,1756241434531,-151.0,0.000242,2]
[381504374,1756241434541,-151.0,0.000242,2]
[381504375,1756241434551,-207.265879,0.000242,2]
[381504376,1756241434560,-168.0,0.00024204,2]
[381504377,1756241434570,-2524.82941417,0.00024255,2]
[381504378,1756241434579,-225.57843596,0.00024255,2]
[381504379,1756241434588,-150.0,0.00024288,4]
[381504380,1756241434597,-150.0,0.00024288,4]
[381504381,1756241434607,-150.0,0.00024288,4]
[381504382,1756241434617,-150.0,0.00024288,4]
[381504383,1756241434626,-368.0,0.00024307,2]
[381504384,1756241434641,-2618.2481025,0.0002431,2]
[381504385,1756241434651,-200.0,0.0002431,7]
[381504386,1756241434661,-150.0,0.00024333,2]
[381504387,1756241434671,-155.87505876,0.00024333,2]
[381504388,1756241434682,-150.0,0.00024349,2]
[381504389,1756241434692,-600.0,0.00024356,2]
[381504390,1756241434701,-2715.12328229,0.00024365,2]
[381504391,1756241434714,-166.66,0.00024371,2]
[381504392,1756241434723,-167.62,0.00024383,2]
[381504393,1756241434733,-1508.88,0.00024389,2]
[381504394,1756241434742,-1393.4,0.000244,7]
[381504395,1756241434751,-4992.64,0.000244,7]
[381504396,1756241434761,-152.24260034,0.00024401,2]
[381504397,1756241434771,-2815.58284374,0.0002442,2]
[381504398,1756241434780,-150.0,0.00024456,4]
[381504399,1756241434789,-150.0,0.00024459,2]
[381504400,1756241434799,-557.78840962,0.00024466,7]
[381504401,1756241434808,-200.0,0.00024466,7]
[381504402,1756241434818,-500.0,0.00024466,7]
[381504403,1756241434827,-519.0,0.00024466,7]
[381504404,1756241434837,-500.0,0.00024466,7]
[381504405,1756241434846,-500.0,0.00024466,7]
[381504406,1756241434856,-2919.75940895,0.00024475,2]
[381504407,1756241434865,-150.0,0.00024486,2]
[381504408,1756241434875,-778.0,0.000245,2]
[381504409,1756241434884,-200.0,0.0002451,7]
[381504410,1756241434894,-2649.71363243,0.0002453,2]
[381504411,1756241434945,-378.07687466,0.0002453,2]
[381504412,1756241434955,-1621.92312534,0.00024567,2]
[381504413,1756241434982,-5652.0,0.00024567,2]
[381504419,1756241439583,-500.0,0.000221,2]
[381504420,1756241439659,-682.23,0.000221,2]
[381504421,1756241439668,-12.05355317,0.00023438,2]
[381504422,1756241439733,-1170.17644683,0.00023438,2]
[381504423,1756241439743,-500.0,0.00023999,2]
[381504424,1756241439753,-225.41497433,0.00023999,2]
[381504425,1756241439763,-2208.40135248,0.00024567,2]
[381504426,1756241439772,-1661.89907513,0.00024585,2]
[381504427,1756241439785,-328.31959918,0.00024585,2]
[381504428,1756241439839,-1149.60008154,0.00024585,2]
[381504429,1756241439849,-31.59991846,0.000246,8]
[381504430,1756241439862,-468.40008154,0.000246,8]
[381504431,1756241439873,-616.48,0.00024616,2]
[381504432,1756241439884,-150.0,0.00024625,4]
[381504433,1756241439893,-426.15281571,0.00024631,2]
[381504436,1756241440654,-75.90305881,0.00024631,2]
[381504437,1756241440663,-3255.99204981,0.0002464,2]
[381504438,1756241440673,-657.0,0.0002465,2]
[381504439,1756241440683,-414.935,0.00024657,2]
[381504440,1756241440692,-1000.0,0.00024658,2]
[381504441,1756241440701,-500.0,0.00024658,7]
[381504442,1756241440711,-164.44854057,0.00024665,2]
[381504443,1756241440720,-152.9,0.0002469,2]
[381504444,1756241440730,-3376.46375566,0.00024695,2]
[381504445,1756241440739,-5653.6993979,0.000247,4]
[381504446,1756241440774,-434.36886676,0.000247,4]
[381504447,1756241440784,-1563.8449298,0.000247,4]
[381504448,1756241440834,-4093.52416527,0.000247,4]
[381504449,1756241440845,-430.69916959,0.000247,4]
[381504450,1756241440854,-1825.54995021,0.000247,4]
[381504451,1756241440865,-297.7262798,0.000247,4]
[381504452,1756241440876,-682.60523184,0.000247,4]
[381504453,1756241440894,-3282.18680281,0.000247,4]
[381504454,1756241440904,-6088.06826466,0.000247,4]
[381504455,1756241440913,-6088.06826466,0.000247,4]
[381504456,1756241440922,-6088.06826466,0.000247,4]
[381504457,1756241440931,-6088.06826466,0.000247,4]
[381504458,1756241440941,-6088.06826466,0.000247,4]
[381504459,1756241440950,-6088.06826466,0.000247,4]
[381504460,1756241440960,-6088.06826466,0.000247,4]
[381504461,1756241440970,-6419.15269785,0.000247,4]
[381504462,1756241440980,-6419.15269785,0.000247,4]
[381504463,1756241440989,-6419.15269785,0.000247,4]
[381504464,1756241440998,-6419.15269785,0.000247,4]
[381504465,1756241441007,-6419.15269785,0.000247,4]
[381504466,1756241441019,-6419.15269785,0.000247,4]
[381504467,1756241441028,-6419.15269785,0.000247,4]
[381504468,1756241441037,-6419.15269785,0.000247,4]
[381504469,1756241441046,-6419.15269785,0.000247,4]
[381504470,1756241441055,-6419.15269785,0.000247,4]
[381504471,1756241441064,-151.0,0.000247,7]
[381504472,1756241441073,-151.0,0.000247,7]
[381504473,1756241441083,-151.0,0.000247,7]
[381504474,1756241441091,-151.0,0.000247,7]
[381504475,1756241441101,-221.229827,0.000247,7]
[381504476,1756241441111,-221.229827,0.000247,7]
[381504477,1756241441120,-151.0,0.000247,7]
[381504478,1756241441129,-221.229827,0.000247,7]
[381504479,1756241441138,-151.0,0.000247,7]
[381504480,1756241441147,-221.229827,0.000247,7]
[381504481,1756241441156,-151.0,0.000247,7]
[381504482,1756241441165,-315.798112,0.000247,7]
[381504483,1756241441175,-151.0,0.000247,7]
[381504484,1756241441184,-151.0,0.000247,7]
[381504485,1756241441193,-315.798112,0.000247,7]
[381504486,1756241441202,-151.0,0.000247,7]
[381504487,1756241441212,-315.798112,0.000247,7]
[381504488,1756241441221,-151.0,0.000247,7]
[381504489,1756241441230,-315.798112,0.000247,7]
[381504490,1756241441239,-151.0,0.000247,7]
[381504491,1756241441248,-151.0,0.000247,7]
[381504492,1756241441257,-151.0,0.000247,7]
[381504493,1756241441268,-151.0,0.000247,7]
[381504494,1756241441277,-151.0,0.000247,7]
[381504495,1756241441286,-151.0,0.000247,7]
[381504496,1756241441294,-151.0,0.000247,7]
[381504497,1756241441303,-151.0,0.000247,7]
[381504498,1756241441312,-151.0,0.000247,7]
[381504499,1756241441321,-151.0,0.000247,7]
[381504500,1756241441331,-151.0,0.000247,7]
[381504501,1756241441339,-151.0,0.000247,7]
[381504502,1756241441348,-151.0,0.000247,7]
[381504503,1756241441357,-151.0,0.000247,7]
[381504504,1756241441367,-151.0,0.000247,7]
[381504505,1756241441376,-151.0,0.000247,7]
[381504506,1756241441385,-177.616318,0.000247,7]
[381504507,1756241441394,-151.0,0.000247,7]
[381504508,1756241441403,-266.95769,0.000247,7]
[381504509,1756241441412,-266.95769,0.000247,7]
[381504510,1756241441420,-266.95769,0.000247,7]
[381504511,1756241441430,-266.95769,0.000247,7]
[381504512,1756241441439,-151.0,0.000247,7]
[381504513,1756241441449,-151.0,0.000247,7]
[381504514,1756241441458,-151.0,0.000247,7]
[381504515,1756241441467,-151.0,0.000247,7]
[381504516,1756241441476,-151.0,0.000247,7]
[381504517,1756241441484,-151.0,0.000247,7]
[381504518,1756241441494,-844.63891918,0.000247,7]
[381504519,1756241441502,-151.0,0.000247,7]
[381504520,1756241441512,-151.0,0.000247,7]
[381504521,1756241441522,-151.0,0.000247,7]
[381504522,1756241441531,-151.0,0.000247,7]
[381504523,1756241441540,-151.0,0.000247,7]
[381504524,1756241441549,-151.0,0.000247,7]
[381504525,1756241441558,-151.0,0.000247,7]
[381504526,1756241441568,-151.0,0.000247,7]
[381504527,1756241441577,-376.020996,0.000247,7]
[381504528,1756241441587,-376.020996,0.000247,7]
[381504529,1756241441596,-376.020996,0.000247,7]
[381504530,1756241441605,-376.020996,0.000247,7]
[381504531,1756241441614,-281.114838,0.000247,7]
[381504532,1756241441623,-151.0,0.000247,7]
[381504533,1756241441636,-151.0,0.000247,7]
[381504534,1756241441645,-159.901781,0.000247,7]
[381504535,1756241441654,-151.0,0.000247,7]
[381504536,1756241441663,-151.0,0.000247,7]
[381504537,1756241441672,-151.0,0.000247,7]
[381504538,1756241441682,-151.0,0.000247,7]
[381504539,1756241441693,-151.0,0.000247,7]
[381504540,1756241441702,-166.281528,0.000247,7]
[381504541,1756241441713,-151.0,0.000247,7]
[381504542,1756241441723,-151.0,0.000247,7]
[381504543,1756241441732,-166.281528,0.000247,7]
[381504544,1756241441741,-151.0,0.000247,7]
[381504545,1756241441750,-151.0,0.000247,7]
[381504546,1756241441760,-166.281528,0.000247,7]
[381504547,1756241441770,-166.281528,0.000247,7]
[381504548,1756241441779,-151.0,0.000247,7]
[381504549,1756241441789,-256.693064,0.000247,7]
[381504550,1756241441798,-151.0,0.000247,7]
[381504551,1756241441807,-151.0,0.000247,7]
[381504552,1756241441817,-395.030906,0.000247,7]
[381504553,1756241441826,-395.030906,0.000247,7]
[381504554,1756241441835,-395.030906,0.000247,7]
[381504555,1756241441844,-151.0,0.000247,7]
[381504556,1756241441853,-395.030906,0.000247,7]
[381504557,1756241441863,-1049.125938,0.000247,7]
[381504558,1756241441872,-151.0,0.000247,7]
[381504559,1756241441881,-151.0,0.000247,7]
[381504560,1756241441890,-235.037172,0.000247,7]
[381504561,1756241441899,-1049.125938,0.000247,7]
[381504562,1756241441908,-151.0,0.000247,7]
[381504563,1756241441918,-235.037172,0.000247,7]
[381504564,1756241441927,-1049.125938,0.000247,7]
[381504565,1756241441936,-151.0,0.000247,7]
[381504566,1756241441945,-151.0,0.000247,7]
[381504567,1756241441955,-151.0,0.000247,7]
[381504568,1756241441965,-235.037172,0.000247,7]
[381504569,1756241441974,-151.878341,0.000247,7]
[381504570,1756241441984,-1049.125938,0.000247,7]
[381504571,1756241441993,-235.037172,0.000247,7]
[381504572,1756241442003,-617.104494,0.000247,7]
[381504573,1756241442013,-617.104494,0.000247,7]
[381504574,1756241442023,-151.0,0.000247,7]
[381504575,1756241442032,-186.542987,0.000247,7]
[381504576,1756241442042,-617.104494,0.000247,7]
[381504577,1756241442052,-151.0,0.000247,7]
[381504578,1756241442062,-151.0,0.000247,7]
[381504579,1756241442071,-617.104494,0.000247,7]
[381504580,1756241442080,-186.542987,0.000247,7]
[381504581,1756241442090,-151.0,0.000247,7]
[381504582,1756241442099,-186.542987,0.000247,7]
[381504583,1756241442109,-151.0,0.000247,7]
[381504584,1756241442119,-151.0,0.000247,7]
[381504585,1756241442128,-186.542987,0.000247,7]
[381504586,1756241442137,-151.0,0.000247,7]
[381504587,1756241442146,-151.0,0.000247,7]
[381504588,1756241442156,-360.325257,0.000247,7]
[381504589,1756241442165,-151.0,0.000247,7]
[381504590,1756241442175,-151.0,0.000247,7]
[381504591,1756241442184,-360.325257,0.000247,7]
[381504592,1756241442193,-360.325257,0.000247,7]
[381504593,1756241442203,-181.105141,0.000247,7]
[381504594,1756241442212,-360.325257,0.000247,7]
[381504595,1756241442221,-181.105141,0.000247,7]
[381504596,1756241442230,-181.105141,0.000247,7]
[381504597,1756241442240,-181.105141,0.000247,7]
[381504598,1756241442250,-720.005286,0.000247,7]
[381504599,1756241442259,-720.005286,0.000247,7]
[381504600,1756241442270,-720.005286,0.000247,7]
[381504601,1756241442279,-720.005286,0.000247,7]
[381504602,1756241442288,-151.0,0.000247,7]
[381504603,1756241442298,-151.0,0.000247,7]
[381504604,1756241442307,-151.0,0.000247,7]
[381504605,1756241442316,-151.0,0.000247,7]
[381504606,1756241442325,-154.06167,0.000247,7]
[381504607,1756241442335,-151.0,0.000247,7]
[381504608,1756241442345,-296.189476,0.000247,7]
[381504609,1756241442354,-151.0,0.000247,7]
[381504611,1756241442363,-296.189476,0.000247,7]
[381504613,1756241442372,-296.189476,0.000247,7]
[381504615,1756241442382,-296.189476,0.000247,7]
[381504617,1756241442392,-151.0,0.000247,7]
[381504618,1756241442401,-593.998275,0.000247,7]
[381504619,1756241442410,-151.0,0.000247,7]
[381504620,1756241442420,-151.0,0.000247,7]
[381504621,1756241442429,-593.998275,0.000247,7]
[381504622,1756241442438,-593.998275,0.000247,7]
[381504623,1756241442448,-593.998275,0.000247,7]
[381504624,1756241442457,-151.0,0.000247,7]
[381504625,1756241442466,-159.652401,0.000247,7]
[381504626,1756241442477,-159.652401,0.000247,7]
[381504627,1756241442486,-153.995177,0.000247,7]
[381504628,1756241442496,-159.652401,0.000247,7]
[381504629,1756241442505,-153.995177,0.000247,7]
[381504631,1756241442515,-159.652401,0.000247,7]
[381504633,1756241442524,-153.995177,0.000247,7]
[381504635,1756241442534,-151.0,0.000247,7]
[381504637,1756241442543,-153.995177,0.000247,7]
[381504639,1756241442553,-151.0,0.000247,7]
[381504641,1756241442562,-151.0,0.000247,7]
[381504643,1756241442572,-151.0,0.000247,7]
[381504644,1756241442582,-151.0,0.000247,7]
[381504647,1756241442592,-151.0,0.000247,7]
[381504648,1756241442600,-151.0,0.000247,7]
[381504650,1756241442609,-151.0,0.000247,7]
[381504651,1756241442618,-151.0,0.000247,7]
[381504652,1756241442628,-151.0,0.000247,7]
[381504653,1756241442643,-151.0,0.000247,7]
[381504654,1756241442652,-151.0,0.000247,7]
[381504655,1756241442661,-151.169936,0.000247,7]
[381504656,1756241442671,-151.0,0.000247,7]
[381504657,1756241442682,-151.0,0.000247,7]
[381504658,1756241442691,-844.63891918,0.000247,7]
[381504659,1756241442701,-151.0,0.000247,7]
[381504660,1756241442711,-156.933319,0.000247,7]
[381504661,1756241442721,-425.22489,0.000247,7]
[381504662,1756241442731,-425.22489,0.000247,7]
[381504663,1756241442741,-425.22489,0.000247,7]
[381504664,1756241442751,-425.22489,0.000247,7]
[381504665,1756241442761,-151.0,0.000247,7]
[381504666,1756241442772,-185.616629,0.000247,7]
[381504667,1756241442782,-151.0,0.000247,7]
[381504668,1756241442792,-248.840196,0.000247,7]
[381504669,1756241442801,-185.616629,0.000247,7]
[381504670,1756241442811,-151.0,0.000247,7]
[381504671,1756241442821,-151.0,0.000247,7]
[381504672,1756241442831,-185.616629,0.000247,7]
[381504673,1756241442840,-151.0,0.000247,7]
[381504674,1756241442850,-248.840196,0.000247,7]
[381504675,1756241442860,-151.0,0.000247,7]
[381504676,1756241442870,-226.671697,0.000247,7]
[381504677,1756241442880,-492.45,0.000247,7]
[381504678,1756241442889,-185.616629,0.000247,7]
[381504679,1756241442899,-248.840196,0.000247,7]
[381504680,1756241442909,-151.0,0.000247,7]
[381504681,1756241442918,-151.0,0.000247,7]
[381504682,1756241442928,-248.840196,0.000247,7]
[381504683,1756241442938,-492.45,0.000247,7]
[381504684,1756241442947,-151.0,0.000247,7]
[381504685,1756241442958,-492.45,0.000247,7]
[381504686,1756241442967,-644.533566,0.000247,7]
[381504687,1756241442978,-151.0,0.000247,7]
[381504688,1756241442988,-492.45,0.000247,7]
[381504689,1756241442999,-644.533566,0.000247,7]
[381504690,1756241443008,-644.533566,0.000247,7]
[381504691,1756241443019,-255.350202,0.000247,7]
[381504692,1756241443029,-644.533566,0.000247,7]
[381504693,1756241443043,-255.350202,0.000247,7]
[381504694,1756241443052,-255.350202,0.000247,7]
[381504695,1756241443062,-318.427936,0.000247,7]
[381504696,1756241443071,-179.670954,0.000247,7]
[381504697,1756241443080,-255.350202,0.000247,7]
[381504698,1756241443089,-318.427936,0.000247,7]
[381504700,1756241443099,-179.670954,0.000247,7]
[381504702,1756241443108,-318.427936,0.000247,7]
[381504704,1756241443118,-179.670954,0.000247,7]
[381504706,1756241443127,-318.427936,0.000247,7]
[381504708,1756241443136,-179.670954,0.000247,7]
[381504710,1756241443145,-192.992108,0.000247,7]
[381504712,1756241443154,-151.0,0.000247,7]
[381504714,1756241443163,-192.992108,0.000247,7]
[381504716,1756241443172,-192.992108,0.000247,7]
[381504718,1756241443182,-192.992108,0.000247,7]
[381504720,1756241443191,-151.0,0.000247,7]
[381504722,1756241443200,-151.0,0.000247,7]
[381504724,1756241443209,-151.0,0.000247,7]
[381504726,1756241443218,-816.987517,0.000247,7]
[381504728,1756241443227,-816.987517,0.000247,7]
[381504730,1756241443236,-816.987517,0.000247,7]
[381504732,1756241443245,-816.987517,0.000247,7]
[381504734,1756241443254,-151.0,0.000247,7]
[381504736,1756241443263,-151.0,0.000247,7]
[381504738,1756241443272,-200.304802,0.000247,7]
[381504740,1756241443282,-324.367657,0.000247,7]
[381504742,1756241443291,-200.304802,0.000247,7]
[381504744,1756241443300,-324.367657,0.000247,7]
[381504746,1756241443309,-151.0,0.000247,7]
[381504748,1756241443318,-151.0,0.000247,7]
[381504750,1756241443327,-200.304802,0.000247,7]
[381504752,1756241443337,-151.0,0.000247,7]
[381504754,1756241443346,-200.304802,0.000247,7]
[381504756,1756241443355,-324.367657,0.000247,7]
[381504758,1756241443364,-151.0,0.000247,7]
[381504760,1756241443373,-151.0,0.000247,7]
[381504761,1756241443383,-151.0,0.000247,7]
[381504763,1756241443392,-324.367657,0.000247,7]
[381504765,1756241443401,-175.706325,0.000247,7]
[381504767,1756241443410,-175.706325,0.000247,7]
[381504770,1756241443419,-1152.093551,0.000247,7]
[381504772,1756241443429,-175.706325,0.000247,7]
[381504774,1756241443438,-1152.093551,0.000247,7]
[381504775,1756241443447,-1152.093551,0.000247,7]
[381504777,1756241443455,-175.706325,0.000247,7]
[381504779,1756241443465,-1152.093551,0.000247,7]
[381504781,1756241443474,-151.0,0.000247,7]
[381504783,1756241443485,-151.0,0.000247,7]
[381504786,1756241443494,-151.0,0.000247,7]
[381504787,1756241443503,-151.0,0.000247,7]
[381504789,1756241443512,-403.07405,0.000247,7]
[381504791,1756241443522,-403.07405,0.000247,7]
[381504793,1756241443530,-151.0,0.000247,7]
[381504795,1756241443540,-403.07405,0.000247,7]
[381504797,1756241443549,-403.07405,0.000247,7]
[381504799,1756241443558,-151.0,0.000247,7]
[381504801,1756241443567,-151.0,0.000247,7]
[381504803,1756241443576,-151.0,0.000247,7]
[381504805,1756241443586,-151.0,0.000247,7]
[381504807,1756241443596,-151.0,0.000247,7]
[381504809,1756241443606,-1011.657316,0.000247,7]
[381504811,1756241443616,-1011.657316,0.000247,7]
[381504813,1756241443626,-1011.657316,0.000247,7]
[381504815,1756241443638,-151.0,0.000247,2]
[381504817,1756241443648,-1011.657316,0.000247,7]
[381504819,1756241443658,-292.029217,0.000247,7]
[381504821,1756241443667,-292.029217,0.000247,7]
[381504823,1756241443678,-354.812648,0.000247,7]
[381504825,1756241443688,-292.029217,0.000247,7]
[381504827,1756241443697,-151.0,0.000247,7]
[381504830,1756241443708,-354.812648,0.000247,7]
[381504831,1756241443717,-292.029217,0.000247,7]
[381504833,1756241443727,-151.0,0.000247,7]
[381504835,1756241443738,-151.0,0.000247,7]
[381504837,1756241443748,-354.812648,0.000247,7]
[381504839,1756241443759,-151.0,0.000247,7]
[381504841,1756241443769,-196.160881,0.000247,7]
[381504843,1756241443778,-151.0,0.000247,7]
[381504845,1756241443789,-151.0,0.000247,7]
[381504848,1756241443799,-354.812648,0.000247,7]
[381504849,1756241443808,-151.0,0.000247,7]
[381504852,1756241443818,-151.0,0.000247,7]
[381504853,1756241443828,-196.160881,0.000247,7]
[381504856,1756241443837,-151.0,0.000247,7]
[381504857,1756241443846,-168.164764,0.000247,7]
[381504859,1756241443856,-196.160881,0.000247,7]
[381504862,1756241443866,-151.0,0.000247,7]
[381504864,1756241443875,-151.0,0.000247,7]
[381504866,1756241443885,-357.113384,0.000247,7]
[381504868,1756241443895,-178.74304,0.000247,7]
[381504870,1756241443904,-196.160881,0.000247,7]
[381504872,1756241443913,-236.610885,0.000247,7]
[381504874,1756241443922,-357.113384,0.000247,7]
[381504876,1756241443931,-357.113384,0.000247,7]
[381504878,1756241443941,-357.113384,0.000247,7]
[381504879,1756241443950,-176.625577,0.000247,7]
[381504882,1756241443959,-151.0,0.000247,7]
[381504883,1756241443969,-151.0,0.000247,7]
[381504885,1756241443978,-151.0,0.000247,7]
[381504887,1756241443987,-176.625577,0.000247,7]
[381504889,1756241443996,-151.0,0.000247,7]
[381504891,1756241444005,-151.0,0.000247,7]
[381504893,1756241444015,-176.625577,0.000247,7]
[381504895,1756241444024,-176.625577,0.000247,7]
[381504897,1756241444033,-151.0,0.000247,7]
[381504899,1756241444043,-409.68272476,0.000247,7]
[381504902,1756241444053,-151.0,0.000247,7]
[381504904,1756241444062,-151.0,0.000247,7]
[381504905,1756241444071,-151.0,0.000247,7]
[381504907,1756241444080,-735.507539,0.000247,7]
[381504909,1756241444089,-735.507539,0.000247,7]
[381504911,1756241444098,-735.507539,0.000247,7]
[381504913,1756241444107,-735.507539,0.000247,7]
[381504915,1756241444116,-151.0,0.000247,7]
[381504917,1756241444126,-254.839388,0.000247,7]
[381504919,1756241444135,-245.0,0.000247,7]
[381504921,1756241444144,-254.839388,0.000247,7]